bitfinex/quotes_BTCUSD_20250331
["timestamp","ask_amount","ask_price","bid_price","bid_amount"]
[1743464583673,0.005,82586.0,82585.0,0.45888586]
[1743464583878,0.005,82586.0,82585.0,0.95888586]
[1743464584144,0.01,82586.0,82585.0,0.97021535]
[1743464584470,0.008,82586.0,82585.0,0.97021535]
[1743464584830,0.01,82586.0,82585.0,1.16910473]
[1743464587387,0.2398002,82602.0,82597.0,0.242138]
[1743464587587,5.056e-05,82601.0,82599.0,0.254239]
[1743464587745,5.056e-05,82601.0,82598.0,0.13768]
[1743464588348,5.056e-05,82601.0,82598.0,0.379814]
[1743464588744,5.056e-05,82601.0,82599.0,0.242132]
[1743464588948,5.056e-05,82601.0,82600.0,0.012106]
[1743464589888,5.056e-05,82601.0,82600.0,0.02447147]
[1743464590134,5.056e-05,82601.0,82600.0,0.012106]
[1743464590333,5.056e-05,82601.0,82600.0,0.018106]
[1743464591094,5.056e-05,82601.0,82600.0,0.024106]
[1743464592204,5.056e-05,82601.0,82600.0,0.0365036]
[1743464592953,5.056e-05,82601.0,82600.0,0.03892456]
[1743464593307,5.056e-05,82601.0,82600.0,0.024106]
[1743464595142,5.056e-05,82601.0,82600.0,0.0362338]
[1743464596118,5.056e-05,82601.0,82600.0,0.012]
[1743464596335,0.08015056,82601.0,82600.0,0.012]
[1743464596586,0.09225656,82601.0,82600.0,0.14964]
[1743464596903,0.08015056,82601.0,82600.0,0.14964]
[1743464597107,0.09225656,82601.0,82600.0,0.14964]
[1743464597296,0.09225656,82601.0,82600.0,0.012]
[1743464597516,0.09225656,82601.0,82600.0,0.14964]
[1743464598301,0.13865656,82601.0,82600.0,0.012]
[1743464598503,0.15319741,82601.0,82600.0,0.012]
[1743464599301,0.15319741,82601.0,82600.0,0.006]
[1743464599620,0.15319741,82601.0,82600.0,0.012]
[1743464599784,0.57580127,82601.0,82600.0,0.012]
[1743464600002,0.57580127,82601.0,82600.0,0.0123366]
[1743464600202,0.58814819,82601.0,82600.0,6e-07]
[1743464601091,0.254289,82583.0,82581.0,1e-07]
[1743464601303,0.39042985,82583.0,82581.0,1e-07]
[1743464601883,0.81303371,82583.0,82581.0,1e-07]
[1743464602481,0.81303371,82583.0,82582.0,0.0063366]
[1743464602681,0.81303371,82583.0,82582.0,0.0123366]
[1743464603033,0.81303371,82583.0,82582.0,0.0063366]
[1743464603841,0.81303371,82583.0,82582.0,0.0003366]
[1743464604009,0.81403371,82583.0,82582.0,0.0003366]
[1743464605132,0.81503371,82583.0,82582.0,0.0013366]
[1743464606539,0.83896133,82583.0,82582.0,0.0013366]
[1743464606691,0.83796133,82583.0,82582.0,0.0003366]
[1743464606873,0.83696133,82583.0,82582.0,0.0003366]
[1743464607272,0.83796133,82583.0,82582.0,0.0003366]
[1743464608761,0.83896133,82583.0,82582.0,0.0053366]
[1743464609552,0.4236,82583.0,82582.0,0.0053366]
[1743464609719,0.556289,82583.0,82582.0,0.0053366]
[1743464623898,0.27364065,82583.0,82582.0,0.0053366]
[1743464625156,0.256289,82583.0,82582.0,0.0053366]
[1743464625598,0.002,82583.0,82582.0,0.0053366]
[1743464625764,0.002,82583.0,82582.0,0.2475196]
[1743464625974,0.002,82583.0,82582.0,0.0053366]
[1743464626672,0.014109,82583.0,82582.0,0.0053366]
[1743464627290,0.014109,82583.0,82582.0,0.1429766]
[1743464628566,0.002,82583.0,82582.0,0.1429766]
[1743464631308,0.014109,82583.0,82582.0,0.1429766]
[1743464637359,0.0142773,82583.0,82582.0,0.1429766]
[1743464639201,0.0021683,82583.0,82582.0,0.1429766]
[1743464639560,0.0021683,82583.0,82582.0,0.3972686]
[1743464639702,0.0021683,82583.0,82582.0,0.5248686]
[1743464639908,0.0021683,82583.0,82582.0,0.94747246]
[1743464640597,0.0001683,82583.0,82582.0,1.44247246]
[1743464640774,0.0051683,82583.0,82582.0,1.44247246]
[1743464640962,0.0051683,82583.0,82582.0,1.44847246]
[1743464641158,0.2544063,82600.0,82591.0,0.254261]
[1743464641344,0.2514063,82600.0,82595.0,0.012107]
[1743464641544,0.242132,82600.0,82596.0,0.379781]
[1743464641846,0.24217956,82601.0,82596.0,0.13764]
[1743464642462,0.254242,82599.0,82596.0,0.13764]
[1743464642901,0.254242,82599.0,82596.0,0.14364]
[1743464643084,0.254242,82599.0,82596.0,0.13764]
[1743464643486,0.242138,82598.0,82596.0,0.14364]
[1743464643739,0.242136,82599.0,82596.0,0.13764]
[1743464643948,0.242139,82597.0,82596.0,0.13764]
[1743464644147,0.242139,82597.0,82596.0,0.14364]
[1743464644466,0.242139,82597.0,82596.0,0.14964]
[1743464644908,5.056e-05,82601.0,82596.0,0.161747]
[1743464645122,0.24218056,82601.0,82596.0,0.397887]
[1743464645474,0.24218056,82601.0,82596.0,0.403887]
[1743464645656,5.056e-05,82601.0,82596.0,0.397887]
[1743464645944,5.056e-05,82601.0,82596.0,0.391887]
[1743464646762,5.056e-05,82601.0,82596.0,0.397887]
[1743464646966,5.056e-05,82601.0,82596.0,0.403887]
[1743464647440,5.056e-05,82601.0,82597.0,0.242137]
[1743464647840,5.056e-05,82601.0,82597.0,0.254243]
[1743464648063,0.24217956,82601.0,82596.0,0.14964]
[1743464648262,0.012106,82598.0,82596.0,0.14964]
[1743464648466,0.012108,82590.0,82584.0,0.3]
[1743464648671,0.012108,82585.0,82584.0,0.3]
[1743464648844,0.012108,82585.0,82584.0,0.4376]
[1743464649570,0.242172,82586.0,82584.0,0.4376]
[1743464649750,0.25428,82586.0,82584.0,0.4376]
[1743464649955,0.002,82585.0,82584.0,0.4376]
[1743464651080,0.006,82585.0,82584.0,0.4376]
[1743464652289,0.006,82585.0,82584.0,0.3]
[1743464652489,0.006,82585.0,82584.0,0.4376]
[1743464662131,0.006,82585.0,82584.0,0.4379366]
[1743464663770,0.006,82585.0,82584.0,0.1379366]
[1743464664019,0.006,82585.0,82584.0,0.1378966]
[1743464667705,0.248174,82585.0,82584.0,0.1378966]
[1743464668101,0.226174,82585.0,82584.0,0.1378966]
[1743464668469,0.012108,82586.0,82584.0,0.1378966]
[1743464668659,0.254282,82586.0,82584.0,0.1378966]
[1743464669408,0.012108,82585.0,82584.0,0.1378966]
[1743464670165,0.012108,82585.0,82584.0,0.0003366]
[1743464670395,0.15784885,82585.0,82584.0,0.0003366]
[1743464670520,0.28045271,82585.0,82584.0,0.0003366]
[1743464670719,0.28445271,82585.0,82584.0,0.0003366]
[1743464671363,0.28045271,82585.0,82584.0,0.0003366]
[1743464671533,0.28045271,82585.0,82584.0,0.0063366]
[1743464671982,0.28045271,82585.0,82584.0,0.0123366]
[1743464672182,0.28045271,82585.0,82584.0,0.0063366]
[1743464672557,0.28045271,82585.0,82584.0,0.0123366]
[1743464672760,0.28045271,82585.0,82584.0,0.0063366]
[1743464673252,0.28045271,82585.0,82584.0,0.0123366]
[1743464674470,0.30499496,82585.0,82584.0,0.0123366]
[1743464675512,0.30516326,82585.0,82584.0,0.0123366]
[1743464677628,0.30516326,82585.0,82584.0,6e-07]
[1743464677843,0.30516326,82585.0,82579.0,0.0003366]
[1743464677844,0.26883885,82580.0,82579.0,9e-07]
[1743464678082,0.46854271,82580.0,82579.0,9e-07]
[1743464678560,0.51644271,82580.0,82579.0,9e-07]
[1743464679115,0.51644271,82580.0,82579.0,0.0060009]
[1743464680028,0.51644271,82580.0,82579.0,0.0120009]
[1743464680458,0.383325,82571.0,82555.0,0.0008366]
[1743464680674,0.52046971,82571.0,82570.0,8e-07]
[1743464681810,0.52155954,82571.0,82570.0,8e-07]
[1743464682164,0.52055954,82571.0,82570.0,8e-07]
[1743464682348,0.52155954,82571.0,82570.0,8e-07]
[1743464684330,0.52255954,82571.0,82570.0,8e-07]
[1743464684547,0.52155954,82571.0,82570.0,8e-07]
[1743464684748,0.00108983,82571.0,82570.0,8e-07]
[1743464684875,0.01419983,82571.0,82570.0,8e-07]
[1743464685076,0.02874068,82571.0,82570.0,8e-07]
[1743464686294,0.00208983,82571.0,82570.0,8e-07]
[1743464686506,0.01319983,82571.0,82570.0,8e-07]
[1743464687294,0.01419983,82571.0,82570.0,0.0030008]
[1743464690589,0.23441283,82572.0,82570.0,0.0030008]
[1743464690793,0.01211,82571.0,82570.0,0.0034651]
[1743464691237,0.23441283,82572.0,82570.0,0.0034651]
[1743464691426,0.242177,82584.0,82575.0,0.01211]
[1743464691728,0.012109,82578.0,82573.0,0.242207]
[1743464691879,0.242198,82577.0,82572.0,0.01211]
[1743464692083,0.242203,82576.0,82572.0,0.01211]
[1743464693295,0.242205,82575.0,82570.0,0.0004651]
[1743464693524,0.242205,82575.0,82573.0,0.004]
[1743464693525,0.01211,82574.0,82573.0,0.004]
[1743464693866,0.254319,82573.0,82572.0,0.005]
[1743464694067,0.254319,82573.0,82572.0,0.009]
[1743464694222,0.254319,82573.0,82572.0,0.004]
[1743464694431,0.242215,82571.0,82570.0,0.0004651]
[1743464694633,0.01211,82572.0,82570.0,0.1380251]
[1743464694894,0.254319,82573.0,82570.0,0.1380251]
[1743464695407,0.254325,82571.0,82570.0,0.1380251]
[1743464695725,0.254325,82571.0,82570.0,0.1420251]
[1743464696520,0.254325,82571.0,82570.0,0.1380251]
[1743464696726,0.254325,82571.0,82570.0,0.1430251]
[1743464696929,0.001,82571.0,82570.0,0.1470251]
[1743464697131,0.001,82571.0,82570.0,0.1541351]
[1743464697351,0.001,82571.0,82570.0,0.16155697]
[1743464697477,0.002,82571.0,82570.0,0.1591351]
[1743464698112,0.002,82571.0,82570.0,0.1470251]
[1743464698307,0.254316,82575.0,82570.0,0.4013521]
[1743464698632,0.242211,82573.0,82571.0,0.13756]
[1743464699005,0.01211,82572.0,82571.0,0.13756]
[1743464700102,0.01211,82572.0,82571.0,0.14156]
[1743464700307,0.254325,82571.0,82570.0,0.0004651]
[1743464700659,0.254325,82571.0,82570.0,0.1380251]
[1743464701231,0.256324,82572.0,82570.0,0.1380251]
[1743464701433,0.256325,82572.0,82570.0,0.1380251]
[1743464701859,0.01211,82571.0,82570.0,0.1380251]
[1743464702373,0.255325,82572.0,82570.0,0.1380251]
[1743464702582,0.001,82571.0,82570.0,0.1430251]
[1743464703268,0.002,82571.0,82570.0,0.1480251]
[1743464703409,0.001,82571.0,82570.0,0.1430251]
[1743464703613,0.001,82571.0,82570.0,0.1480251]
[1743464703807,0.001,82571.0,82570.0,0.1430251]
[1743464704242,0.002,82571.0,82570.0,0.1480251]
[1743464705741,0.002,82571.0,82570.0,0.3902431]
[1743464705942,0.2354834,82575.0,82570.0,0.1480251]
[1743464706149,0.254301,82579.0,82573.0,0.254319]
[1743464706396,0.242197,82578.0,82573.0,0.254319]
[1743464707103,0.254301,82579.0,82571.0,0.242215]
[1743464707104,0.001,82575.0,82571.0,0.242215]
[1743464707309,0.01311,82575.0,82573.0,0.004]
[1743464707451,0.255315,82575.0,82573.0,0.004]
[1743464707808,0.01211,82574.0,82573.0,0.004]
[1743464708044,0.01211,82574.0,82573.0,0.14652]
[1743464708221,0.01211,82574.0,82573.0,0.009]
[1743464708467,0.03886928,82574.0,82573.0,0.14652]
[1743464708820,0.02665085,82574.0,82573.0,0.14652]
[1743464709019,0.02665085,82574.0,82573.0,0.14252]
[1743464709628,0.02665085,82574.0,82573.0,0.13752]
[1743464709843,0.02665085,82574.0,82573.0,0.14252]
[1743464710043,0.02765085,82574.0,82573.0,0.14752]
[1743464710250,0.02765085,82574.0,82573.0,0.14252]
[1743464710681,0.02865085,82574.0,82573.0,0.14752]
[1743464710881,0.02881925,82574.0,82573.0,0.14752]
[1743464711482,0.02881925,82574.0,82573.0,0.01]
[1743464711655,0.15142311,82574.0,82573.0,0.01]
[1743464712057,0.22942311,82574.0,82573.0,0.01]
[1743464714031,0.01211,82571.0,82570.0,0.0004651]
[1743464714193,0.26886585,82571.0,82570.0,0.0004651]
[1743464714627,0.39146971,82571.0,82570.0,0.0004651]
[1743464714794,0.47426971,82571.0,82570.0,0.0004651]
[1743464715576,0.52006971,82571.0,82570.0,0.0004651]
[1743464715779,0.52006971,82571.0,82570.0,1e-07]
[1743464716020,0.52106971,82571.0,82570.0,1e-07]
[1743464716197,0.52106971,82571.0,82565.0,5e-07]
[1743464716397,0.39548185,82566.0,82565.0,5e-07]
[1743464716549,0.51808571,82566.0,82565.0,5e-07]
[1743464716756,0.51808571,82566.0,82555.0,1e-07]
[1743464716757,0.680971,82556.0,82555.0,1e-07]
[1743464716955,0.81811571,82556.0,82555.0,1e-07]
[1743464717361,1.22801571,82556.0,82555.0,1e-07]
[1743464719173,1.25181133,82556.0,82555.0,1e-07]
[1743464719779,1.25381133,82556.0,82555.0,1e-07]
[1743464721220,1.263064,82556.0,82555.0,1e-07]
[1743464722385,1.262064,82556.0,82555.0,1e-07]
[1743464722589,1.262064,82556.0,82537.0,0.13752]
[1743464722590,0.254427,82538.0,82537.0,0.13752]
[1743464723048,0.26896785,82538.0,82537.0,0.13752]
[1743464724205,0.26899585,82529.0,82528.0,0.00047557]
[1743464725020,0.254455,82529.0,82528.0,0.00047557]
[1743464725629,0.255455,82529.0,82528.0,0.00147557]
[1743464726945,0.256455,82529.0,82528.0,0.00147557]
[1743464731844,0.27099585,82529.0,82528.0,0.13903557]
[1743464732481,0.26899585,82529.0,82528.0,0.13803557]
[1743464732599,0.26999585,82529.0,82528.0,0.13803557]
[1743464732801,0.27099585,82529.0,82528.0,0.13903557]
[1743464733001,0.27099585,82529.0,82528.0,0.13803557]
[1743464733226,0.26999585,82529.0,82528.0,0.13803557]
[1743464733446,0.27199585,82529.0,82528.0,0.13903557]
[1743464734542,0.003,82529.0,82528.0,0.13903557]
[1743464735070,0.015116,82529.0,82528.0,0.13903557]
[1743464735450,0.003,82529.0,82528.0,0.13903557]
[1743464737281,0.257455,82529.0,82528.0,0.13903557]
[1743464737505,0.257455,82529.0,82528.0,0.00147557]
[1743464737704,0.27199585,82529.0,82528.0,0.13903557]
[1743464738318,0.27199585,82529.0,82528.0,0.00147557]
[1743464738497,0.27199585,82529.0,82528.0,0.13903557]
[1743464741538,0.02665685,82529.0,82528.0,0.13903557]
[1743464741737,0.26899585,82529.0,82528.0,0.13903557]
[1743464741948,0.25444,82534.0,82528.0,0.13903557]
[1743464742254,0.254446,82532.0,82528.0,0.13903557]
[1743464742462,0.242335,82531.0,82528.0,0.13903557]
[1743464742704,0.254451,82531.0,82528.0,0.13903557]
[1743464743043,0.254451,82531.0,82528.0,0.13803557]
[1743464743508,0.001,82532.0,82528.0,0.38137457]
[1743464743726,0.001,82532.0,82528.0,0.38037457]
[1743464744310,0.001,82532.0,82528.0,0.39249157]
[1743464744652,0.001,82532.0,82531.0,0.012116]
[1743464744844,0.001,82532.0,82531.0,0.01453907]
[1743464745063,0.001,82532.0,82531.0,0.13471986]
[1743464746036,0.254414,82543.0,82536.0,0.012115]
[1743464746450,0.254414,82543.0,82536.0,0.25443]
[1743464746669,0.254414,82543.0,82537.0,0.254428]
[1743464748335,0.254418,82542.0,82537.0,0.012115]
[1743464748534,0.012115,82537.0,82536.0,0.006]
[1743464748787,0.012115,82537.0,82536.0,0.1436]
[1743464748996,0.012115,82537.0,82536.0,0.1376]
[1743464749192,0.012115,82537.0,82536.0,0.1436]
[1743464749399,0.012115,82537.0,82536.0,0.1376]
[1743464749808,0.012115,82537.0,82536.0,0.1436]
[1743464750017,0.012115,82537.0,82536.0,0.1496]
[1743464752586,0.012115,82537.0,82536.0,0.012]
[1743464752793,0.02665585,82537.0,82536.0,0.012]
[1743464753011,0.02665585,82537.0,82536.0,0.1498]
[1743464753733,0.02665585,82537.0,82536.0,0.1438]
[1743464753889,0.02765585,82537.0,82536.0,0.1488]
[1743464754268,0.02765585,82537.0,82536.0,0.1428]
[1743464754705,0.02865585,82537.0,82536.0,0.1478]
[1743464755340,0.002,82537.0,82536.0,0.1478]
[1743464755511,0.002,82537.0,82536.0,0.402233]
[1743464755728,0.002,82537.0,82536.0,0.52483686]
[1743464756425,0.002,82537.0,82536.0,0.60443686]
[1743464757457,0.001,82537.0,82536.0,0.59943686]
[1743464758244,0.242284,82548.0,82543.0,0.242297]
[1743464758466,0.012114,82546.0,82544.0,0.1376]
[1743464758669,0.242292,82545.0,82544.0,0.1376]
[1743464758822,0.24229,82546.0,82544.0,0.1376]
[1743464759167,0.254404,82546.0,82544.0,0.1376]
[1743464759572,0.012114,82545.0,82544.0,0.1376]
[1743464759777,0.012114,82545.0,82544.0,0.1436]
[1743464761107,0.012114,82545.0,82544.0,0.5596]
[1743464761319,0.012114,82545.0,82544.0,0.55988]
[1743464762225,0.012114,82545.0,82544.0,0.56588]
[1743464762387,0.012114,82546.0,82544.0,0.56588]
[1743464762596,0.012114,82549.0,82544.0,0.56588]
[1743464762820,0.242277,82550.0,82545.0,0.012114]
[1743464763044,0.242282,82549.0,82544.0,0.808174]
[1743464763423,0.242282,82549.0,82544.0,0.802174]
[1743464763662,0.254399,82548.0,82544.0,0.802174]
[1743464763869,0.254399,82548.0,82544.0,0.808174]
[1743464764276,0.254399,82548.0,82544.0,0.802174]
[1743464764782,0.254399,82548.0,82544.0,0.808174]
[1743464765080,0.254399,82548.0,82544.0,0.796174]
[1743464765422,0.254399,82548.0,82544.0,0.56588]
[1743464765819,0.242275,82551.0,82545.0,0.24229]
[1743464766081,0.254392,82550.0,82545.0,0.242292]
[1743464766236,0.242283,82548.0,82544.0,0.820286]
[1743464766425,0.012114,82549.0,82544.0,0.820286]
[1743464766628,0.254396,82549.0,82544.0,0.571994]
[1743464766833,0.242285,82548.0,82544.0,0.814287]
[1743464767078,0.242285,82548.0,82545.0,0.006]
[1743464767658,0.242285,82548.0,82545.0,0.012]
[1743464767984,0.012113,82551.0,82546.0,0.254403]
[1743464768197,0.254389,82551.0,82546.0,0.254403]
[1743464768410,0.24228,82549.0,82544.0,0.808287]
[1743464768615,0.24228,82549.0,82545.0,0.006]
[1743464768964,0.242276,82551.0,82547.0,0.012114]
[1743464769146,0.242276,82551.0,82545.0,0.012114]
[1743464769147,0.242279,82550.0,82545.0,0.012114]
[1743464769561,0.242282,82549.0,82545.0,0.012114]
[1743464770174,0.242282,82549.0,82547.0,0.006]
[1743464770376,0.254396,82549.0,82547.0,0.006]
[1743464771586,0.242282,82549.0,82547.0,0.006]
[1743464771723,0.012113,82550.0,82547.0,0.006]
[1743464771927,0.254391,82550.0,82547.0,0.012]
[1743464772286,0.0001684,82549.0,82547.0,0.006]
[1743464772947,0.0001684,82549.0,82547.0,0.012]
[1743464773372,0.0001684,82549.0,82547.0,0.248285]
[1743464773571,0.0001684,82549.0,82547.0,0.006]
[1743464773774,0.2424514,82549.0,82547.0,0.012]
[1743464774494,0.0001684,82549.0,82547.0,0.012]
[1743464774840,0.2424504,82549.0,82547.0,0.006]
[1743464775232,0.2424504,82549.0,82547.0,0.012]
[1743464775801,0.012114,82548.0,82547.0,0.012]
[1743464775994,0.012114,82548.0,82547.0,0.14956]
[1743464776783,0.012114,82548.0,82547.0,0.13756]
[1743464777044,0.2424504,82549.0,82547.0,0.14356]
[1743464777245,0.2545644,82549.0,82547.0,0.14956]
[1743464777457,0.012114,82548.0,82547.0,0.14956]
[1743464777863,0.012114,82548.0,82547.0,0.14356]
[1743464778699,0.012114,82548.0,82547.0,0.14956]
[1743464778908,0.012114,82548.0,82547.0,0.14356]
[1743464779355,0.012114,82548.0,82547.0,0.14956]
[1743464780342,0.012114,82548.0,82547.0,0.14356]
[1743464780740,0.012114,82548.0,82547.0,0.14956]
[1743464780964,0.02665485,82548.0,82547.0,0.012]
[1743464781146,0.14915485,82548.0,82547.0,0.14956]
[1743464781353,0.14915485,82548.0,82547.0,0.012]
[1743464782174,0.134614,82548.0,82547.0,0.012]
[1743464782532,0.059014,82548.0,82547.0,0.012]
[1743464785383,0.0591824,82548.0,82547.0,0.012]
[1743464786603,0.0591824,82548.0,82547.0,0.006]
[1743464786604,0.0122824,82548.0,82547.0,0.006]
[1743464786809,0.0122824,82548.0,82547.0,0.012]
[1743464787752,0.0001684,82548.0,82547.0,0.024114]
[1743464788346,0.0001684,82548.0,82547.0,0.018114]
[1743464788677,0.0001684,82548.0,82547.0,0.024114]
[1743464790244,0.0001684,82548.0,82547.0,0.14671786]
[1743464790448,0.0001684,82548.0,82547.0,0.56514056]
[1743464790648,0.0001684,82548.0,82547.0,0.56271786]
[1743464790933,0.0001684,82548.0,82547.0,0.55671786]
[1743464791069,0.0001684,82548.0,82547.0,0.93731786]
[1743464791284,5e-07,82556.0,82555.0,0.3]
[1743464791489,5e-07,82556.0,82555.0,1.13020624]
[1743464791719,5e-07,82556.0,82555.0,1.53020624]
[1743464792690,5e-07,82556.0,82555.0,1.53034561]
[1743464793049,5e-07,82556.0,82555.0,1.53634561]
[1743464793249,5e-07,82556.0,82555.0,2.03634561]
[1743464794003,5e-07,82556.0,82555.0,2.03034561]
[1743464794717,5e-07,82556.0,82555.0,1.65499776]
[1743464796883,5e-07,82556.0,82555.0,1.65533436]
[1743464803654,5e-07,82556.0,82555.0,2.42153436]
[1743464808433,5e-07,82556.0,82555.0,2.82153436]
[1743464813295,5e-07,82556.0,82555.0,2.74093436]
[1743464816237,5e-07,82556.0,82555.0,2.17876221]
[1743464816439,5e-07,82556.0,82555.0,2.19363835]
[1743464817013,5e-07,82556.0,82555.0,1.69363835]
[1743464817991,5e-07,82556.0,82555.0,1.55615835]
[1743464818341,5e-07,82556.0,82555.0,1.69363835]
[1743464819125,0.0606005,82559.0,82558.0,0.012112]
[1743464820150,0.0606005,82559.0,82558.0,0.554365]
[1743464820318,0.0606005,82559.0,82558.0,0.3]
[1743464820522,0.242239,82563.0,82558.0,0.43748]
[1743464820724,0.242239,82563.0,82555.0,1.25615835]
[1743464820725,0.012112,82556.0,82555.0,1.24404535]
[1743464820929,0.012112,82556.0,82555.0,0.75284535]
[1743464821541,0.02665285,82556.0,82555.0,0.61536535]
[1743464821745,0.02665285,82556.0,82555.0,0.00047597]
[1743464821746,0.19555671,82556.0,82555.0,0.00047597]
[1743464821975,0.19555671,82556.0,82555.0,0.00647597]
[1743464822180,0.27595671,82556.0,82555.0,0.01147597]
[1743464822594,0.27595671,82556.0,82555.0,0.00547597]
[1743464822994,0.28705308,82556.0,82555.0,0.00047597]
[1743464823287,0.28705308,82556.0,82555.0,0.00547597]
[1743464823288,0.28805308,82556.0,82555.0,0.00547597]
[1743464824491,0.28705308,82556.0,82555.0,0.00047597]
[1743464824733,0.28705308,82556.0,82555.0,0.00647597]
[1743464824905,0.28705308,82556.0,82555.0,0.01247597]
[1743464825110,0.28705308,82556.0,82555.0,0.00647597]
[1743464825481,0.28705308,82556.0,82555.0,0.01247597]
[1743464829101,0.28705308,82556.0,82555.0,0.00047597]
[1743464829303,0.28705308,82556.0,82555.0,0.00647597]
[1743464829501,0.28705308,82556.0,82555.0,0.01247597]
[1743464830700,0.28705308,82556.0,82555.0,0.00647597]
[1743464830944,0.28705308,82556.0,82555.0,0.01247597]
[1743464831868,0.28705308,82556.0,82555.0,0.00647597]
[1743464832228,0.28705308,82556.0,82555.0,0.01247597]
[1743464832791,0.28705308,82556.0,82555.0,0.00647597]
[1743464833597,0.28705308,82556.0,82555.0,0.01247597]
[1743464838820,0.28705308,82556.0,82555.0,0.00047597]
[1743464839165,0.28705308,82556.0,82555.0,0.00647597]
[1743464839341,0.28705308,82556.0,82555.0,0.01247597]
[1743464842731,0.58705308,82556.0,82555.0,9.7e-07]
[1743464842933,0.012115,82537.0,82536.0,0.13752]
[1743464843134,0.012115,82537.0,82529.0,0.0003368]
[1743464843135,0.02665685,82530.0,82529.0,0.00042663]
[1743464843334,0.26899285,82530.0,82529.0,0.13794663]
[1743464844159,0.26899285,82530.0,82529.0,0.00042663]
[1743464844737,0.26899285,82530.0,82529.0,0.00642663]
[1743464845120,0.26899285,82530.0,82529.0,0.01242663]
[1743464848549,0.26899285,82530.0,82529.0,0.00642663]
[1743464848906,0.26999285,82530.0,82529.0,0.01042663]
[1743464849873,0.27924447,82530.0,82529.0,0.01042663]
[1743464852316,0.26999285,82530.0,82529.0,0.01042663]
[1743464853857,0.001,82530.0,82529.0,0.01042663]
[1743464854021,0.243336,82530.0,82529.0,0.01042663]
[1743464854399,0.255452,82530.0,82529.0,0.01042663]
[1743464855364,0.37805586,82530.0,82529.0,0.01042663]
[1743464855704,0.39259671,82530.0,82529.0,0.01042663]
[1743464856582,0.39259671,82530.0,82529.0,0.00442663]
[1743464856746,0.39259671,82530.0,82529.0,0.01042663]
[1743464857067,0.39159671,82530.0,82529.0,0.00642663]
[1743464857265,0.39259671,82530.0,82529.0,0.01042663]
[1743464869671,0.39259671,82530.0,82527.0,0.0008362]
[1743464869672,0.39349885,82528.0,82527.0,3e-08]
[1743464869824,0.51610271,82528.0,82527.0,3e-08]
[1743464870831,0.51710271,82528.0,82527.0,0.00400003]
[1743464873368,0.51810271,82528.0,82527.0,0.00400003]
[1743464873578,0.51810271,82528.0,82527.0,3e-08]
[1743464877083,0.254483,82520.0,82519.0,0.0003364]
[1743464877287,0.37708686,82520.0,82519.0,0.0003364]
[1743464877481,0.39162771,82520.0,82519.0,0.0003364]
[1743464878584,0.39262771,82520.0,82519.0,0.0003364]
[1743464879367,0.39362771,82520.0,82519.0,0.0033364]
[1743464879723,0.39262771,82520.0,82519.0,0.0003364]
[1743464880045,0.40506929,82520.0,82519.0,0.0033364]
[1743464880244,0.40606929,82520.0,82519.0,0.0033364]
[1743464881593,0.43013402,82520.0,82519.0,4e-07]
[1743464881792,0.55863402,82520.0,82519.0,4e-07]
[1743464882639,0.26906385,82507.0,82506.0,0.1376]
[1743464883981,0.27006385,82507.0,82506.0,0.1376]
[1743464884787,0.254538,82502.0,82501.0,0.416]
[1743464885010,0.254554,82497.0,82496.0,0.0003366]
[1743464885210,0.254554,82497.0,82496.0,0.1381366]
[1743464885974,0.254554,82497.0,82496.0,0.13827606]
[1743464886756,0.259554,82497.0,82496.0,0.13827606]
[1743464887165,0.264554,82497.0,82496.0,0.13827606]
[1743464887313,0.252433,82497.0,82496.0,0.13827606]
[1743464887742,0.264554,82497.0,82496.0,0.13827606]
[1743464887940,0.2768515,82497.0,82496.0,0.13827606]
[1743464889130,0.2768515,82497.0,82496.0,0.13815606]
[1743464891374,0.0222975,82497.0,82496.0,0.13815606]
[1743464892346,0.0344185,82497.0,82496.0,0.13815606]
[1743464892544,0.0244185,82497.0,82496.0,0.13815606]
[1743464892881,0.0344185,82497.0,82496.0,0.13815606]
[1743464893807,0.0294185,82497.0,82496.0,0.13815606]
[1743464894099,0.0344185,82497.0,82496.0,0.13815606]
[1743464894303,0.0294185,82497.0,82496.0,0.13815606]
[1743464894487,0.0344185,82497.0,82496.0,0.13815606]
[1743464898664,0.0294185,82497.0,82496.0,0.13815606]
[1743464899618,0.0304185,82497.0,82496.0,0.13815606]
[1743464899823,0.0254185,82497.0,82496.0,0.13815606]
[1743464899935,0.0264185,82497.0,82496.0,0.13815606]
[1743464901671,0.0142975,82497.0,82496.0,0.13815606]
[1743464901872,0.0264185,82497.0,82496.0,0.13815606]
[1743464904896,0.0142975,82497.0,82496.0,0.13815606]
[1743464905039,0.0264185,82497.0,82496.0,0.13815606]
[1743464905285,0.0264185,82497.0,82496.0,0.13807606]
[1743464905705,0.254552,82498.0,82496.0,0.13807606]
[1743464906459,0.242433,82497.0,82496.0,0.13807606]
[1743464906658,0.254554,82497.0,82496.0,0.13807606]
[1743464907706,0.255554,82497.0,82496.0,0.13807606]
[1743464907906,0.255554,82497.0,82496.0,0.00047606]
[1743464908156,0.255554,82497.0,82496.0,0.13807606]
[1743464908472,0.256554,82497.0,82496.0,0.13907606]
[1743464913024,0.002,82497.0,82496.0,0.13907606]
[1743464913220,0.014121,82497.0,82496.0,0.13907606]
[1743464913442,0.24678741,82498.0,82496.0,0.13907606]
[1743464914436,0.24678741,82498.0,82496.0,0.13807606]
[1743464914591,0.012121,82497.0,82496.0,0.13907606]
[1743464916210,0.012121,82497.0,82496.0,0.13807606]
[1743464916642,0.013121,82497.0,82496.0,0.13807606]
[1743464917430,0.014121,82497.0,82496.0,0.14107606]
[1743464920467,0.002,82497.0,82496.0,0.14107606]
[1743464921420,0.002,82497.0,82496.0,0.23249706]
[1743464921835,0.002,82497.0,82496.0,0.23492126]
[1743464922033,0.002,82497.0,82496.0,0.28412126]
[1743464922235,0.002,82497.0,82496.0,0.28169706]
[1743464922483,0.002,82497.0,82496.0,0.29307273]
[1743464923055,0.002,82497.0,82496.0,0.16457273]
[1743464923255,0.002,82497.0,82496.0,0.15245173]
[1743464923458,0.002,82497.0,82496.0,0.01485173]
[1743464923661,0.256554,82497.0,82496.0,0.15245173]
[1743464924261,0.256554,82497.0,82496.0,0.14107606]